{"text_format":"1","workbook":"xlsx","n_sheets":6,"sheets":["Audit tools overview","Audit tools instructions","Baseline audit","CPDP audit","Abbreviations","Glossary of terms"],"not_rendered":{"charts":0,"images":3,"macros":1,"external_links":0,"defined_names":8,"comments":2,"pivot_tables":0},"unopened":[],"bounds":{"document_bytes":16777216,"sheet_cells":100000,"rows_first":2000,"rows_last":500,"rows_between":2000,"halvings":0,"cell_chars":16384,"cell_head_chars":4096},"cells_cut":0,"cells_raw":0,"read":"whole","date_system":"1900"}

{"sheet":"Audit tools overview","index":0,"n_rows":0,"n_cols":0,"rows_kept":0,"cut":false,"hidden":false,"merged":[]}

{"sheet":"Audit tools instructions","index":1,"n_rows":0,"n_cols":0,"rows_kept":0,"cut":false,"hidden":false,"merged":[]}

{"sheet":"Baseline audit","index":2,"n_rows":69,"n_cols":23,"rows_kept":69,"cut":false,"hidden":false,"merged":[[3,7,3,14],[5,7,5,9],[47,1,47,22],[6,2,6,3],[10,1,10,22],[59,1,59,22],[20,1,20,22],[46,1,46,22],[15,1,15,22],[6,4,6,22],[8,1,8,22],[36,1,36,22],[37,1,37,22],[2,7,2,14],[2,17,2,22],[0,2,0,22],[0,1,5,1],[1,2,1,6],[1,15,1,16],[2,2,2,6],[1,7,1,14],[2,15,2,16],[1,17,1,22],[4,2,5,6],[4,7,4,9],[4,10,5,22],[3,2,3,6],[3,15,3,19],[3,20,3,22]]}
[null,"Care Plan for the Dying Person \nBaseline audit tool\nVersion 1/2019","Auditor information"]
[null,null,"Name of auditor:",null,null,null,null,null,null,null,null,null,null,null,null,"Position:"]
[null,null,"Ward / unit / department:",null,null,null,null,null,null,null,null,null,null,null,null,"Facility:"]
[null,null,"Date range of audit:",null,null,null,null,null,null,null,null,null,null,null,null,"Date of report submission:"]
[null,null,"Coding algorithm: ",null,null,null,null,"0 = incomplete",null,null,"See AUDIT TOOL INSTRUCTIONS tab for information about how to use this tool"]
[null,null,null,null,null,null,null,"1 = complete"]
[null,"Overall average compliance =",{"$f":"W69","v":0}]
[null,"Baseline audit items","Case 1","Case 2","Case 3","Case 4","Case 5","Case 6","Case 7","Case 8","Case 9","Case 10","Case 11 ","Case 12","Case 13","Case 14","Case 15","Case 16","Case 17","Case 18","Case 19","Case 20","Section item average"]
[null,"Case details \nSelect appropriate from the drop down menu"]
[null,"Medical speciality with overall responsibility for patient's care at the time of death"]
[null,"Evidence of commencing high quality care for the last days and/or hours of life\nTo be coded as complete each element must be identifiable in the patient's medical record"]
[1,"Person assessed by the MDT as being in the last days to hours of life",null,null,null,null,null,null,null,null,null,null,null,null,null,null,null,null,null,null,null,null,{"$f":"SUM(C12:V12)","v":0}]
[1,"Person has a current Acute Resuscitation Plan that states resuscitation is not to be provided ",null,null,null,null,null,null,null,null,null,null,null,null,null,null,null,null,null,null,null,null,{"$f":"SUM(C13:V13)","v":0}]
[1,"Patient assessed as is in the last days to hours of life (carried out by most senior treating doctor responsible for the person's care)",null,null,null,null,null,null,null,null,null,null,null,null,null,null,null,null,null,null,null,null,{"$f":"SUM(C14:V14)","v":0}]
[null,"SECTION COMPLIANCE",{"$f":"IFERROR(SUM(C12:C14)/(COUNT($A$12:$A$14)*1),0)","v":0},0,0,0,0,0,0,0,0,0,0,0,0,0,0,0,0,0,0,0,{"$f":"AVERAGE(C15:V15)","v":0}]
[null,"Evidence of advance care planning documentation\nTo be coded as complete each element must be identifiable in the patient's medical record"]
[1,"Advance Health Directive completed",null,null,null,null,null,null,null,null,null,null,null,null,null,null,null,null,null,null,null,null,{"$f":"SUM(C17:V17)","v":0}]
[1,"Enduring Power of Attorney (for health) completed ",null,null,null,null,null,null,null,null,null,null,null,null,null,null,null,null,null,null,null,null,{"$f":"SUM(C18:V18)","v":0}]
[1,"Statement of Choices completed",null,null,null,null,null,null,null,null,null,null,null,null,null,null,null,null,null,null,null,null,{"$f":"SUM(C19:V19)","v":0}]
[null,"SECTION COMPLIANCE",{"$f":"IFERROR(SUM(C17:C19)/(COUNT($A$17:$A$19)*1),0)","v":0},0,0,0,0,0,0,0,0,0,0,0,0,0,0,0,{"$f":"IFERROR(SUM(S17:S19)/(COUNT($A$17:$A$19)*1),0)","v":0},{"$f":"IFERROR(SUM(T17:T19)/(COUNT($A$17:$A$19)*1),0)","v":0},{"$f":"IFERROR(SUM(U17:U19)/(COUNT($A$17:$A$19)*1),0)","v":0},{"$f":"IFERROR(SUM(V17:V19)/(COUNT($A$17:$A$19)*1),0)","v":0},{"$f":"AVERAGE(C20:V20)","v":0}]
[null,"Evidence of documentation for the following items\nTo be coded as complete each element must be identifiable in the patient's medical record"]
[1,"Evidence of assessment Person is able to participate in care at end of life discussions",null,null,null,null,null,null,null,null,null,null,null,null,null,null,null,null,null,null,null,null,{"$f":"SUM(C22:V22)","v":0}]
[1,"Person is able to understand that they are dying",null,null,null,null,null,null,null,null,null,null,null,null,null,null,null,null,null,null,null,null,0]
[1,"The person has a SDM (as identified in ARP or other Advance Care Planning documents)",null,null,null,null,null,null,null,null,null,null,null,null,null,null,null,null,null,null,null,null,0]
[1,"The person's SDM is able to participate in the care at end of life discussions",null,null,null,null,null,null,null,null,null,null,null,null,null,null,null,null,null,null,null,null,0]
[1,"The person's SDM understands the person is dying",null,null,null,null,null,null,null,null,null,null,null,null,null,null,null,null,null,null,null,null,0]
[1,"Family/Carer(s) need for support and bereavement risk assessed",null,null,null,null,null,null,null,null,null,null,null,null,null,null,null,null,null,null,null,null,0]
[1,"Allied Health/Support Services referred to",null,null,null,null,null,null,null,null,null,null,null,null,null,null,null,null,null,null,null,null,0]
[1,"Up-to-date contact information for the persons family/carer(s) is documented",null,null,null,null,null,null,null,null,null,null,null,null,null,null,null,null,null,null,null,null,0]
[1,"The person's family/carer(s) is given a full explanation of the facilities that is available to them",null,null,null,null,null,null,null,null,null,null,null,null,null,null,null,null,null,null,null,null,0]
[1,"Medications prescribed to manage the person's symptoms",null,null,null,null,null,null,null,null,null,null,null,null,null,null,null,null,null,null,null,null,0]
[1,"The person's need for clinical interventions is reviewed by the Medical Officer",null,null,null,null,null,null,null,null,null,null,null,null,null,null,null,null,null,null,null,null,0]
[1,"Nursing assesment for care at the end of life undertaken",null,null,null,null,null,null,null,null,null,null,null,null,null,null,null,null,null,null,null,null,0]
[1,"Full explanation of current care plan discussed with the person",null,null,null,null,null,null,null,null,null,null,null,null,null,null,null,null,null,null,null,null,0]
[1,"Full explanation of current care plan discussed with the family/carer(s)",null,null,null,null,null,null,null,null,null,null,null,null,null,null,null,null,null,null,null,null,0]
[null,"SECTION COMPLIANCE",{"$f":"IFERROR(SUM(C22:C35)/(COUNT($A$22:$A$35)*1),0)","v":0},0,0,0,0,0,0,0,0,0,0,0,0,0,0,0,0,0,0,0,{"$f":"AVERAGE(C36:V36)","v":0}]
[null,"Evidence of documentation for following symptoms"]
[null,"Symptom assessment\nTo be coded as complete each item must be assessed and recorded two hourly"]
[1,"Pain related symptoms assessment and management  ",null,null,null,null,null,null,null,null,null,null,null,null,null,null,null,null,null,null,null,null,{"$f":"SUM(C39:V39)","v":0}]
[1,"Restlessness and agitation (delirium) assessment and management ",null,null,null,null,null,null,null,null,null,null,null,null,null,null,null,null,null,null,null,null,0]
[1,"Distress related to respiratory secretions assessment and management ",null,null,null,null,null,null,null,null,null,null,null,null,null,null,null,null,null,null,null,null,0]
[1,"Nausea and/or vomiting symptom assessment and management ",null,null,null,null,null,null,null,null,null,null,null,null,null,null,null,null,null,null,null,null,0]
[1,"Distress related to breathlessness assessment and management ",null,null,null,null,null,null,null,null,null,null,null,null,null,null,null,null,null,null,null,null,0]
[1,"Other symptoms (specific) assessment and management ",null,null,null,null,null,null,null,null,null,null,null,null,null,null,null,null,null,null,null,null,0]
[1,"Family/carer(s) distress assessment and management ",null,null,null,null,null,null,null,null,null,null,null,null,null,null,null,null,null,null,null,null,0]
[null,"SECTION COMPLIANCE",{"$f":"IFERROR(SUM(C39:C45)/(COUNT($A$39:$A$45)*1),0)","v":0},0,0,0,0,0,0,0,0,0,0,0,0,0,0,0,0,0,0,0,{"$f":"AVERAGE(C46:V46)","v":0}]
[null,"Evidence of documentation for following comfort observation and management "]
[null,"Comfort observation\nTo be coded as complete each item must be assessed and recorded two hourly"]
[1,"Observation of urinary problems, assessed and managed ",null,null,null,null,null,null,null,null,null,null,null,null,null,null,null,null,null,null,null,null,{"$f":"SUM(C49:V49)","v":0}]
[1,"Observation of bowel problems, assessed and managed ",null,null,null,null,null,null,null,null,null,null,null,null,null,null,null,null,null,null,null,null,0]
[1,"The persons's comfort and safety regarding medication administration was maintained ",null,null,null,null,null,null,null,null,null,null,null,null,null,null,null,null,null,null,null,null,0]
[1,"The person recieved fluids to support individual needs ",null,null,null,null,null,null,null,null,null,null,null,null,null,null,null,null,null,null,null,null,0]
[1,"The person's mouth kept moist and clean ",null,null,null,null,null,null,null,null,null,null,null,null,null,null,null,null,null,null,null,null,0]
[1,"The person's skin integrity is maintained ",null,null,null,null,null,null,null,null,null,null,null,null,null,null,null,null,null,null,null,null,0]
[1,"The person's personal hygiene needs met",null,null,null,null,null,null,null,null,null,null,null,null,null,null,null,null,null,null,null,null,0]
[1,"The person receives care in a physical environment adjusted to support their individual needs",null,null,null,null,null,null,null,null,null,null,null,null,null,null,null,null,null,null,null,null,0]
[1,"The person's psychological and spiritual wellbeing supported",null,null,null,null,null,null,null,null,null,null,null,null,null,null,null,null,null,null,null,null,0]
[1,"The wellbeing of the family or carer or advocate attending the person supported",null,null,null,null,null,null,null,null,null,null,null,null,null,null,null,null,null,null,null,null,0]
[null,"SECTION COMPLIANCE",{"$f":"IFERROR(SUM(C49:C58)/(COUNT($A$49:$A$58)*1),0)","v":0},{"$f":"IFERROR(SUM(D49:D58)/(COUNT($A$49:$A$58)*1),0)","v":0},0,0,0,0,0,0,0,0,0,0,0,0,0,0,0,0,0,0,{"$f":"AVERAGE(C59:V59)","v":0}]
[null,"Evidence of documentation for care after death\nTo be coded as complete each item must have an entry, be initialled and dated"]
[1,"Verification of person's death",null,null,null,null,null,null,null,null,null,null,null,null,null,null,null,null,null,null,null,null,{"$f":"SUM(C61:V61)","v":0}]
[1,"Evidence of reportable coronial death, if applicable ",null,null,null,null,null,null,null,null,null,null,null,null,null,null,null,null,null,null,null,null,0]
[1,"Person(s) present at time of death (family/carer(s))",null,null,null,null,null,null,null,null,null,null,null,null,null,null,null,null,null,null,null,null,0]
[1,"Relevant supporting information provided to family/carer(s)",null,null,null,null,null,null,null,null,null,null,null,null,null,null,null,null,null,null,null,null,0]
[1,"Care of the deceased person undertaken according to the person's/family(carer) wishes, as well as hospital policy",null,null,null,null,null,null,null,null,null,null,null,null,null,null,null,null,null,null,null,null,0]
[1,"The person's death is communicated to other relevant service providers",null,null,null,null,null,null,null,null,null,null,null,null,null,null,null,null,null,null,null,null,0]
[1,"Death certificate completed according to hospital policy/procedures",null,null,null,null,null,null,null,null,null,null,null,null,null,null,null,null,null,null,null,null,0]
[null,"SECTION COMPLIANCE",{"$f":"IFERROR(SUM(C61:C67)/(COUNT($A$61:$A$67)*1),0)","v":0},{"$f":"IFERROR(SUM(D61:D67)/(COUNT($A$61:$A$67)*1),0)","v":0},0,0,0,0,0,0,0,0,0,0,0,0,0,0,0,0,0,0,{"$f":"AVERAGE(C68:V68)","v":0}]
[null,"OVERALL DOCUMENT COMPLETION COMPLIANCE",{"$f":"COUNTA(C12:C14,C17:C19,C22:C35,C39:C45,C49:C58,C61:C67)/SUM($A$12:$A$68)","v":0},0,0,0,0,0,0,{"$f":"COUNTA(J12:J14,J17:J19,J22:J35,J39:J45,J49:J58,J61:J67)/SUM($A$10:$A$68)","v":0},{"$f":"COUNTA(K12:K14,K17:K19,K22:K35,K39:K45,K49:K58,K61:K67)/SUM($A$10:$A$68)","v":0},{"$f":"COUNTA(L12:L14,L17:L19,L22:L35,L39:L45,L49:L58,L61:L67)/SUM($A$10:$A$68)","v":0},{"$f":"COUNTA(M12:M14,M17:M19,M22:M35,M39:M45,M49:M58,M61:M67)/SUM($A$10:$A$68)","v":0},{"$f":"COUNTA(N12:N14,N17:N19,N22:N35,N39:N45,N49:N58,N61:N67)/SUM($A$10:$B$68)","v":0},{"$f":"COUNTA(O12:O14,O17:O19,O22:O35,O39:O45,O49:O58,O61:O67)/SUM($A$10:$A$68)","v":0},0,0,0,0,0,0,0,{"$f":"COUNTA(C12:V14,C17:V19,C22:V35,C39:V45,C49:V58,C61:V67)/(SUM($A$10:$A$67)*20)","v":0}]

{"sheet":"CPDP audit","index":3,"n_rows":88,"n_cols":23,"rows_kept":88,"cut":false,"hidden":false,"merged":[[75,1,75,22],[78,1,78,22],[2,2,2,6],[17,1,17,22],[22,1,22,22],[25,1,25,22],[29,1,29,22],[32,1,32,22],[10,1,10,22],[6,2,6,3],[6,4,6,22],[4,2,5,6],[4,7,4,9],[8,1,8,22],[3,20,3,22],[54,1,54,22],[1,7,1,14],[1,17,1,22],[1,15,1,16],[0,2,0,21],[63,1,63,22],[5,7,5,9],[4,10,5,22],[0,1,5,1],[2,15,2,16],[2,17,2,22],[3,2,3,6],[2,7,2,14],[3,7,3,14],[53,1,53,22],[3,15,3,19],[1,2,1,6]]}
[null,"Care Plan for the Dying Person \nClinical form audit tool\nVersion 1/2019","Auditor information"]
[null,null,"Name of auditor:",null,null,null,null,null,null,null,null,null,null,null,null,"Position:"]
[null,null,"Ward / unit / department:",null,null,null,null,null,null,null,null,null,null,null,null,"Facility:"]
[null,null,"Date range of audit:",null,null,null,null,null,null,null,null,null,null,null,null,"Date of report submission:"]
[null,null,"Coding algorithm: ",null,null,null,null,"0 = incomplete",null,null,"See AUDIT TOOL INSTRUCTIONS tab for information about how to use this tool"]
[null,null,null,null,null,null,null,"1 = complete"]
[null,"Overall average compliance =",{"$f":"W88","v":0}]
[null,"CPDP audit items","Case 1","Case 2","Case 3","Case 4","Case 5","Case 6","Case 7","Case 8","Case 9","Case 10","Case 11 ","Case 12","Case 13","Case 14","Case 15","Case 16","Case 17","Case 18","Case 19","Case 20","Section item average"]
[null,"Case details \nSelect appropriate from the drop down menu"]
[null,"Medical speciality with overall responsibility for patient's care at the time of death"]
[null,"Commencement of Care Plan for the Dying Person"]
[1,"Person assessed by the MDT as being in the last days to hours of life",null,null,null,null,null,null,null,null,null,null,null,null,null,null,null,null,null,null,null,null,{"$f":"SUM(C12:V12)","v":0}]
[1,"The person has a current Acute Resuscitation Plan (ARP) stating resuscitation is not to be provided ",null,null,null,null,null,null,null,null,null,null,null,null,null,null,null,null,null,null,null,null,{"$f":"SUM(C13:V13)","v":0}]
[1,"The most senior treating doctor responsible for the person's care endorses use of the CPDP",null,null,null,null,null,null,null,null,null,null,null,null,null,null,null,null,null,null,null,null,{"$f":"SUM(C14:V14)","v":0}]
[1,"Name of the treating consultant/the most senior treating doctor/medical officer and registered nurse signed and dated",null,null,null,null,null,null,null,null,null,null,null,null,null,null,null,null,null,null,null,null,{"$f":"SUM(C15:V15)","v":0}]
[1,"Name of the ward, date and time documented",null,null,null,null,null,null,null,null,null,null,null,null,null,null,null,null,null,null,null,null,{"$f":"SUM(C16:V16)","v":0}]
[null,"SECTION COMPLIANCE",{"$f":"IFERROR(SUM(C12:C16)/(COUNT($A$12:$A$16)*1),0)","v":0},0,0,0,0,0,0,0,0,0,0,0,0,0,0,0,0,0,0,0,{"$f":"AVERAGE(C17:V17)","v":0}]
[null,"Evidence of advance care planning documented\nTo be coded as complete each item must have an entry"]
[1,"Advance Health Directive section completed",null,null,null,null,null,null,null,null,null,null,null,null,null,null,null,null,null,null,null,null,{"$f":"SUM(C19:V19)","v":0}]
[1,"Enduring Power of Attorney (for health) section completed ",null,null,null,null,null,null,null,null,null,null,null,null,null,null,null,null,null,null,null,null,{"$f":"SUM(C20:V20)","v":0}]
[1,"Statement of Choices section completed",null,null,null,null,null,null,null,null,null,null,null,null,null,null,null,null,null,null,null,null,{"$f":"SUM(C21:V21)","v":0}]
[null,"SECTION COMPLIANCE",{"$f":"IFERROR(SUM(C19:C21)/(COUNT($A$19:$A$21)*1),0)","v":0},0,0,0,0,0,0,0,0,0,0,0,0,0,0,0,0,0,0,0,{"$f":"AVERAGE(C22:V22)","v":0}]
[null,"Communication\nTo be coded as complete this item must have an entry"]
[1,"Section notifying services that the person is expected to die within days or hours is completed ",null,null,null,null,null,null,null,null,null,null,null,null,null,null,null,null,null,null,null,null,{"$f":"SUM(C24:V24)","v":0}]
[null,"SECTION COMPLIANCE",{"$f":"IFERROR(SUM(C24)/(COUNT($A$24)*1),0)","v":0},0,0,0,0,0,0,0,0,0,0,0,0,0,0,0,0,0,0,0,{"$f":"AVERAGE(C25:V25)","v":0}]
[null,"Discontinuation of Care Plan for the Dying Person (if relevant)\nTo be coded as complete each item must have an entry, be initialled and dated"]
[1,"Care Plan for the Dying Person document discontinuation date and time completed (if relevant)",null,null,null,null,null,null,null,null,null,null,null,null,null,null,null,null,null,null,null,null,{"$f":"SUM(C27:V27)+COUNTIF(C27:V27,\"n/a\")","v":0}]
[1,"Discussion of new treatment and care options MDT review section completed (if relevant)",null,null,null,null,null,null,null,null,null,null,null,null,null,null,null,null,null,null,null,null,{"$f":"SUM(C28:V28)+COUNTIF(C28:V28,\"n/a\")","v":0}]
[null,"SECTION COMPLIANCE",{"$f":"IF(AND(C27=\"n/a\",C28=1),1,\nIF(AND(C27=1,C28=\"n/a\"),1,\nIF(AND(C27=\"n/a\",C28=\"n/a\"),1,\nIF(AND(C27=\"n/a\",C28=0),0.5,\nIF(AND(C27=0,C28=\"n/a\"),0.5,\nIFERROR(SUM(C27:C28)/(COUNT($A$27:$A$28)*1),0))))))","v":0},{"$f":"IF(AND(D27=\"n/a\",D28=1),1,\nIF(AND(D27=1,D28=\"n/a\"),1,\nIF(AND(D27=\"n/a\",D28=\"n/a\"),1,\nIF(AND(D27=\"n/a\",D28=0),0.5,\nIF(AND(D27=0,D28=\"n/a\"),0.5,\nIFERROR(SUM(D27:D28)/(COUNT($A$27:$A$28)*1),0))))))","v":0},{"$f":"IF(AND(E27=\"n/a\",E28=1),1,\nIF(AND(E27=1,E28=\"n/a\"),1,\nIF(AND(E27=\"n/a\",E28=\"n/a\"),1,\nIF(AND(E27=\"n/a\",E28=0),0.5,\nIF(AND(E27=0,E28=\"n/a\"),0.5,\nIFERROR(SUM(E27:E28)/(COUNT($A$27:$A$28)*1),0))))))","v":0},{"$f":"IF(AND(F27=\"n/a\",F28=1),1,\nIF(AND(F27=1,F28=\"n/a\"),1,\nIF(AND(F27=\"n/a\",F28=\"n/a\"),1,\nIF(AND(F27=\"n/a\",F28=0),0.5,\nIF(AND(F27=0,F28=\"n/a\"),0.5,\nIFERROR(SUM(F27:F28)/(COUNT($A$27:$A$28)*1),0))))))","v":0},{"$f":"IF(AND(G27=\"n/a\",G28=1),1,\nIF(AND(G27=1,G28=\"n/a\"),1,\nIF(AND(G27=\"n/a\",G28=\"n/a\"),1,\nIF(AND(G27=\"n/a\",G28=0),0.5,\nIF(AND(G27=0,G28=\"n/a\"),0.5,\nIFERROR(SUM(G27:G28)/(COUNT($A$27:$A$28)*1),0))))))","v":0},{"$f":"IF(AND(H27=\"n/a\",H28=1),1,\nIF(AND(H27=1,H28=\"n/a\"),1,\nIF(AND(H27=\"n/a\",H28=\"n/a\"),1,\nIF(AND(H27=\"n/a\",H28=0),0.5,\nIF(AND(H27=0,H28=\"n/a\"),0.5,\nIFERROR(SUM(H27:H28)/(COUNT($A$27:$A$28)*1),0))))))","v":0},0,0,0,0,0,0,0,0,0,0,0,0,0,0,{"$f":"AVERAGE(C29:V29)","v":0}]
[null,"Signature log"]
[1,"Signature log completed",null,null,null,null,null,null,null,null,null,null,null,null,null,null,null,null,null,null,null,null,{"$f":"SUM(C31:V31)","v":0}]
[null,"SECTION COMPLIANCE",{"$f":"IFERROR(SUM(C31)/(COUNT($A$31)*1),0)","v":0},0,0,0,0,0,0,0,0,0,0,0,0,0,0,0,{"$f":"IFERROR(SUM(S31)/(COUNT($A$31)*2),0)","v":0},{"$f":"IFERROR(SUM(T31)/(COUNT($A$31)*1),0)","v":0},{"$f":"IFERROR(SUM(U31)/(COUNT($A$31)*1),0)","v":0},{"$f":"IFERROR(SUM(V31)/(COUNT($A$31)*1),0)","v":0},{"$f":"AVERAGE(C32:P32)","v":0}]
[null,"Initial assessment\nTo be coded as complete each item must have an entry, be initialled and dated"]
[1,"1.1: Is the person able to participate in the discussion?",null,null,null,null,null,null,null,null,null,null,null,null,null,null,null,null,null,null,null,null,{"$f":"SUM(C34:V34)","v":0}]
[1,"1.2: Does the person understand they are dying?",null,null,null,null,null,null,null,null,null,null,null,null,null,null,null,null,null,null,null,null,0]
[1,"1.3: Important questions to ask the person",null,null,null,null,null,null,null,null,null,null,null,null,null,null,null,null,null,null,null,null,0]
[1,"2.1: Does the person have a SDM (as identified in ARP)?",null,null,null,null,null,null,null,null,null,null,null,null,null,null,null,null,null,null,null,null,0]
[1,"2.2: Is the person's SDM able to participate in the discussion?",null,null,null,null,null,null,null,null,null,null,null,null,null,null,null,null,null,null,null,null,0]
[1,"2.3: Does the person's SDM understand the person is dying?",null,null,null,null,null,null,null,null,null,null,null,null,null,null,null,null,null,null,null,null,0]
[1,"2.4: Important questions to ask the family/carer(s) ",null,null,null,null,null,null,null,null,null,null,null,null,null,null,null,null,null,null,null,null,0]
[1,"2.5: Family/Carer(s) need for support and bereavement risk assessed",null,null,null,null,null,null,null,null,null,null,null,null,null,null,null,null,null,null,null,null,0]
[1,"2.6: Allied Health/Support Services referred to",null,null,null,null,null,null,null,null,null,null,null,null,null,null,null,null,null,null,null,null,0]
[1,"2.7: Up-to-date contact information for the persons family/carer(s) is documented",null,null,null,null,null,null,null,null,null,null,null,null,null,null,null,null,null,null,null,null,0]
[1,"2.8: The person's family/carer(s) is given a full explanation of the facilities available to them",null,null,null,null,null,null,null,null,null,null,null,null,null,null,null,null,null,null,null,null,0]
[1,"3.1: The person's diagnosis",null,null,null,null,null,null,null,null,null,null,null,null,null,null,null,null,null,null,null,null,0]
[1,"3.2: Baseline information about the person's condition",null,null,null,null,null,null,null,null,null,null,null,null,null,null,null,null,null,null,null,null,0]
[1,"3.3: Medications to manage the person's symptoms",null,null,null,null,null,null,null,null,null,null,null,null,null,null,null,null,null,null,null,null,0]
[1,"3.4: The person's need for interventions is reviewed by the Medical Officer",null,null,null,null,null,null,null,null,null,null,null,null,null,null,null,null,null,null,null,null,0]
[1,"4.1: Nursing assesment undertaken",null,null,null,null,null,null,null,null,null,null,null,null,null,null,null,null,null,null,null,null,0]
[1,"5.1: Full explanation of current care plan discussed with the person",null,null,null,null,null,null,null,null,null,null,null,null,null,null,null,null,null,null,null,null,0]
[1,"5.2: Full explanation of current care plan discussed with the family/carer(s)",null,null,null,null,null,null,null,null,null,null,null,null,null,null,null,null,null,null,null,null,0]
[1,"5.3: Family/Carer(s) Information Sheet provided",null,null,null,null,null,null,null,null,null,null,null,null,null,null,null,null,null,null,null,null,0]
[null,"SECTION COMPLIANCE",{"$f":"IFERROR(SUM(C34:C52)/(COUNT($A$34:$A$52)*1),0)","v":0},0,0,0,0,0,0,0,0,0,0,0,0,0,0,0,0,0,0,0,{"$f":"AVERAGE(C53:V53)","v":0}]
[null,"Ongoing assessment observations"]
[null,"Symptom assessment\nTo be coded as complete each item must be assessed and recorded two hourly"]
[1,"Pain ",null,null,null,null,null,null,null,null,null,null,null,null,null,null,null,null,null,null,null,null,{"$f":"SUM(C56:V56)","v":0}]
[1,"Restlessness and agitation (delirium) ",null,null,null,null,null,null,null,null,null,null,null,null,null,null,null,null,null,null,null,null,0]
[1,"Distress related to respiratory secretions ",null,null,null,null,null,null,null,null,null,null,null,null,null,null,null,null,null,null,null,null,0]
[1,"Nausea and/or vomiting ",null,null,null,null,null,null,null,null,null,null,null,null,null,null,null,null,null,null,null,null,0]
[1,"Distress related to breathlessness",null,null,null,null,null,null,null,null,null,null,null,null,null,null,null,null,null,null,null,null,0]
[1,"Other symptoms (specific)",null,null,null,null,null,null,null,null,null,null,null,null,null,null,null,null,null,null,null,null,0]
[1,"Family/carer(s) distress",null,null,null,null,null,null,null,null,null,null,null,null,null,null,null,null,null,null,null,null,0]
[null,"SECTION COMPLIANCE",{"$f":"IFERROR(SUM(C56:C62)/(COUNT($A$56:$A$62)*1),0)","v":0},{"$f":"IFERROR(SUM(D56:D62)/(COUNT($A$56:$A$62)*1),0)","v":0},0,0,0,0,0,0,0,0,0,0,0,0,0,0,0,0,0,0,{"$f":"AVERAGE(C63:V63)","v":0}]
[null,"Comfort observation\nTo be coded as complete each item must be assessed and recorded two hourly"]
[1,"The person does not have urinary problems",null,null,null,null,null,null,null,null,null,null,null,null,null,null,null,null,null,null,null,null,{"$f":"SUM(C65:V65)","v":0}]
[1,"The person does not have bowel problems",null,null,null,null,null,null,null,null,null,null,null,null,null,null,null,null,null,null,null,null,0]
[1,"The person's comfort and safety regarding medication administration is maintained ",null,null,null,null,null,null,null,null,null,null,null,null,null,null,null,null,null,null,null,null,0]
[1,"The person receives fluids to support their individual needs ",null,null,null,null,null,null,null,null,null,null,null,null,null,null,null,null,null,null,null,null,0]
[1,"The person's mouth being moist and clean ",null,null,null,null,null,null,null,null,null,null,null,null,null,null,null,null,null,null,null,null,0]
[1,"The person's skin integrity being maintained ",null,null,null,null,null,null,null,null,null,null,null,null,null,null,null,null,null,null,null,null,0]
[1,"The person's personal hygiene needs are met",null,null,null,null,null,null,null,null,null,null,null,null,null,null,null,null,null,null,null,null,0]
[1,"The person receives care in a physical environment adjusted to support their individual needs",null,null,null,null,null,null,null,null,null,null,null,null,null,null,null,null,null,null,null,null,0]
[1,"The person's psychological and spiritual well-being is supported",null,null,null,null,null,null,null,null,null,null,null,null,null,null,null,null,null,null,null,null,0]
[1,"The wellbeing of the family or carer or advocate attending the person is supported",null,null,null,null,null,null,null,null,null,null,null,null,null,null,null,null,null,null,null,null,0]
[null,"SECTION COMPLIANCE",{"$f":"IFERROR(SUM(C65:C74)/(COUNT($A$65:$A$74)*1),0)","v":0},{"$f":"IFERROR(SUM(D65:D74)/(COUNT($A$65:$A$74)*1),0)","v":0},0,0,0,0,0,0,0,0,0,0,0,0,0,0,0,0,0,0,{"$f":"AVERAGE(C75:V75)","v":0}]
[null,"CPDP clinical notes"]
[1,"Clinical notes pages used",null,null,null,null,null,null,null,null,null,null,null,null,null,null,null,null,null,null,null,null,{"$f":"SUM(C77:V77)","v":0}]
[null,"SECTION COMPLIANCE",{"$f":"IFERROR(SUM(C77)/(COUNT($A$77)*1),0)","v":0},0,0,0,0,0,0,0,0,0,0,0,0,0,0,0,0,0,0,0,{"$f":"AVERAGE(C78:V78)","v":0}]
[null,"Care after death\nTo be coded as complete each item must have an entry, be initialled and dated"]
[1,"Item 6.1: Verification of the person's death",null,null,null,null,null,null,null,null,null,null,null,null,null,null,null,null,null,null,null,null,{"$f":"SUM(C80:V80)","v":0}]
[1,"Item 7.1: Is this likely to be a reportable coronial death? ",null,null,null,null,null,null,null,null,null,null,null,null,null,null,null,null,null,null,null,null,0]
[1,"Item 8.1: Person(s) present at time of death (family/carer(s))",null,null,null,null,null,null,null,null,null,null,null,null,null,null,null,null,null,null,null,null,0]
[1,"Item 8.2: The family/carer(s) can express an understanding of what they will need to do next",null,null,null,null,null,null,null,null,null,null,null,null,null,null,null,null,null,null,null,null,0]
[1,"Item 9.1: Care of the deceased person undertaken according to the person's/family(carer) wishes and policy",null,null,null,null,null,null,null,null,null,null,null,null,null,null,null,null,null,null,null,null,0]
[1,"Item 10.1: The person's death is communicated to (where relevant)",null,null,null,null,null,null,null,null,null,null,null,null,null,null,null,null,null,null,null,null,0]
[1,"Item 10.2: Death certificate completed according to hospital policy/procedures",null,null,null,null,null,null,null,null,null,null,null,null,null,null,null,null,null,null,null,null,0]
[null,"SECTION COMPLIANCE",{"$f":"IFERROR(SUM(C80:C86)/(COUNT($A$80:$A$86)*1),0)","v":0},{"$f":"IFERROR(SUM(D80:D86)/(COUNT($A$80:$A$86)*1),0)","v":0},0,0,0,0,0,0,0,0,0,0,0,0,0,0,0,0,0,0,{"$f":"AVERAGE(C87:V87)","v":0}]
[null,"OVERALL DOCUMENT COMPLETION COMPLIANCE",{"$f":"COUNTA(C12:C16,C19:C21,C24,C27:C28,C31,C34:C52,C56:C62,C65:C74,C77,C80:C86)/SUM($A$12:$A$86)","v":0},{"$f":"COUNTA(D12:D16,D19:D21,D24,D27:D28,D31,D34:D52,D56:D62,D65:D74,D77,D80:D86)/SUM($A$12:$A$86)","v":0},0,0,0,0,0,0,0,0,0,0,0,0,0,0,0,{"$f":"COUNTA(T12:T16,T19:T21,T24,T27:T28,T31,T34:T52,T56:T62,T65:T74,T77,T80:T86)/SUM($A$12:$A$86)","v":0},0,{"$f":"COUNTA(V12:V16,V19:V21,V24,V27:V28,V31,V34:V52,V56:V62,V65:V74,V77,V80:V86)/SUM($A$12:$A$86)","v":0},{"$f":"COUNTA(C12:V16,C19:V21,C24:V24,C27:V28,C31:V31,C34:V52,C56:V62,C65:V74,C77:V77,C80:V86)/(SUM($A$12:$A$86)*20)","v":0}]

{"sheet":"Abbreviations","index":4,"n_rows":16,"n_cols":3,"rows_kept":16,"cut":false,"hidden":false,"merged":[[1,1,1,2]]}
[]
[null,"Abbreviations"]
[null,"ACP","Advance care planning"]
[null,"AHD","Advance health directive form"]
[null,"AKPS","Australian-modified Karnofsky Performance Status"]
[null,"ARP","Acute Resuscitation Plan"]
[null,"CPDP","Care Plan for the Dying Person"]
[null,"CSCI","Continuous subcutaneous infusion"]
[null,"EPOA","Enduring power of attorney form"]
[null,"NSQHS","National Safety & Quality Health Service"]
[null,"HHS","Hospital and Health Service"]
[null,"MDT","Multidisciplinary team"]
[null,"MET","Medical emergency team"]
[null,"PRN","Pro re nata"]
[null,"QCAT","Queensland Civil and Administrative Tribunal"]
[null,"SDM","Substitute decision-maker"]

{"sheet":"Glossary of terms","index":5,"n_rows":7,"n_cols":3,"rows_kept":7,"cut":false,"hidden":false,"merged":[[1,1,1,2]]}
[]
[null,"Glossary of terms"]
[null,"Advance Health Directive (AHD)","An advance health directive (AHD) - sometimes called a living will - is a formal way to give instructions about a person’s future health care. It comes into effect only if a person’s cognitive health deteriorates and they become unable to make their own decisions (i.e. lose capacity to make decisions)[1]. \n\nAn AHD: \n• outlines what medical treatment or health care the person wants if they can no longer make decisions for themselves. It can be general (e.g. that person wishes to receive all available treatment) or specific (e.g. person wishes to decline certain medical treatment) \n• enables the person to appoint an attorney for health and personal matters  \n• includes information that health professionals should know, including health conditions, religious or cultural beliefs that could affect the person’s care."]
[null,"Acute Resuscitation Plan (ARP)","The ARP records resuscitation planning outcomes following discussion with the patient, or their substitute decision-maker if the patient lacks capacity, and other members of the multidisciplinary team."]
[null,"Enduring Power of Attorney (EPOA)","A power of attorney is a formal document giving another person the authority to make personal and/or financial decisions on your behalf. Personal decisions relate to your care and welfare, including your health care, (e.g. deciding where or with whom you live or consenting to medical treatment). Financial decisions relate to the management of your finances (e.g. paying your bills and taxes, selling or renting your home, using your income to pay for your needs or invest your money).\n\nThere are 2 types of power of attorney:\n1. general power of attorney\n2. enduring power of attorney.\n\nAn enduring power of attorney (EPOA) form is used to appoint someone to make financial and/or personal decisions on behalf of a person. "]
[null,"Statement of Choices","The Statement of Choices form focuses on a person's wishes and choices for health care into the future. An advance care plan, including the Statement of Choices, will only be used if a person is unable to make or communicate their decisions."]
[null,"Statutory Health Attorney \n(for health/personal matters)","A statutory health attorney is someone with automatic authority to make health care decisions on behalf of a person if they are an adult whose capacity to make health care decisions is permanently or temporarily impaired. A statutory health attorney will make decisions about the person’s health care if they are too ill or incapable of making them. For example, consent may be needed for medical treatment or an operation while they are unconscious. Or the person may have an intellectual disability, dementia or an acquired brain injury and may be unable to make your own decisions.\n\nA statutory health attorney will act if you have not:\n• set out relevant directions for your medical treatment in an advance health directive\n• appointed an attorney for personal matters under an enduring power of attorney\n• had a guardian appointed for health care matters by the Queensland Civil and Administrative Tribunal (QCAT)."]